Workbook

Sheet U1
A1: Seien n i.i.d. Zufallsvariablen Xi gegeben und die folgende Statistik,
A2: die auf das kartesische Produkt der Bilder dieser Zufallsvariablen definiert ist:
B5: Y=
A9: x0quer ist der Mittelwert der Grundgesamtheit, der als Schätzer für den Erwartungswert der Zufallsvariablen Xi betrachtet wird. (x0quer = 49)
A10: s0 ist die Standardabweichung der Grundgesamtheit, die als Schätzer für die Standardabweichung der Zufallsvariablen Xi betrachtet wird. (s0 = 4)
A11: Xquer ist die Statistik, welche Stichprobenmittel annimmt.
A12: n ist die Stichprobengrösse.
A13: Wie hoch ist die Wahrscheinlichkeit, dass die Statistik Y den Werte Y(x) oder einen grösseren Wert zufälliger weise annimmt? (x = Stichprobe)
A18: Daten (Werte der Xi)
A19: 46.19717992
A20: 50.43552094
A21: 53.82051594
A22: 49.08687546
A23: 53.0709915
A24: 47.44067778
A25: 48.86444695
A26: 47.73079067
A27: 53.44707331
A28: 53.50895441
A29: 57.1160941
A30: 48.98564585
A31: 50.30900916
A32: 52.23753531
A33: 53.25976029
A34: 46.23483495
A35: 48.71287177
A36: 56.93060082
A37: 49.25369765
A38: 51.86924617
A39: 46.7593845
A40: 51.43692227
A41: 51.09390796
A42: 45.92625685
A43: 52.21545235
A44: 44.07787186
A45: 47.89146208
A46: 56.69207802
A47: 43.36223413
A48: 54.19716349
A49: 53.38316132
A50: 51.72477639
A51: 50.20515473
A52: 50.35640476
A53: 51.3813787
A54: 51.50687512
A55: 53.28859846
A56: 51.10418606
A57: 49.23097147
A58: 46.88386595
A59: 53.2950974
A60: 52.60611537
A61: 52.85515726
A62: 46.90515848
A63: 50.12468579
A64: 39.0658363
A65: 45.8737573
A66: 48.84711514
A67: 43.89436654
A68: 42.32315216
A69: 53.50454531
A70: 50.5816183
A71: 48.75280897
A72: 51.13795879
A73: 51.42529296

Sheet LU1
A2: Y=
A5: Y stellt eine Standardisierung der Statistik Mittelwert dar (Vergleichen Sie die Formel,
A6: in welche die geschätzten Grössen ersetzt werden, mit der Formel im Zentralen Grenzwertsatz.)
A7: Da der standardisierte Mittelwert gemäss zentralem Grenzwertsatz standardnormalverteilt ist
A8: berechnen wir:
C9: Mittelwert: | D9: =AVERAGE(A19:A73) -> 50.04405628 | E9: (Stichprobenmittel = Wert den die Statistik Mittelwert für den vorliegenden Datensatz annimmt = Xquer(x))
C10: n | D10: =COUNT(A19:A73) -> 55 | E10: (Anzahl Daten)
C12: Y(x) = | D12: =(D9-49)/(4/SQRT(55)) -> 1.935732154 | E12: Wert der Statistik Y für die Stichprobe x.
C13: P(Y > 1.93573215) = | E13: =1-NORMDIST(D9,49,4/SQRT(55),1) -> 0.02645025708 | F13: =1-NORMVERT(D15;49;4/WURZEL(55);1)
C14: =1-NORMDIST(D12,0,1,1) -> 0.02645025708
A15: Wichtige Zusatzüberlegung: | C15: Wie hoch ist die Wahrscheinlichkeit, dass die Statistik Xquer den Stichprobenmittelwert oder einen höheren Wert annimmt.
C16: P(Xquer > 50.044056) mit Xquer ~ N(49, 4^2/55) =
C17: =1-NORMDIST(D9,49,4/SQRT(55),1) -> 0.02645025708
A18: Daten (Werte der Xi) = Stichprobe x
A19: 46.19717992
A20: 50.43552094
A21: 53.82051594
A22: 49.08687546
A23: 53.0709915
A24: 47.44067778
A25: 48.86444695
A26: 47.73079067
A27: 53.44707331
A28: 53.50895441
A29: 57.1160941
A30: 48.98564585
A31: 50.30900916
A32: 52.23753531
A33: 53.25976029
A34: 46.23483495
A35: 48.71287177
A36: 56.93060082
A37: 49.25369765
A38: 51.86924617
A39: 46.7593845
A40: 51.43692227
A41: 51.09390796
A42: 45.92625685
A43: 52.21545235
A44: 44.07787186
A45: 47.89146208
A46: 56.69207802
A47: 43.36223413
A48: 54.19716349
A49: 53.38316132
A50: 51.72477639
A51: 50.20515473
A52: 50.35640476
A53: 51.3813787
A54: 51.50687512
A55: 53.28859846
A56: 51.10418606
A57: 49.23097147
A58: 46.88386595
A59: 53.2950974
A60: 52.60611537
A61: 52.85515726
A62: 46.90515848
A63: 50.12468579
A64: 39.0658363
A65: 45.8737573
A66: 48.84711514
A67: 43.89436654
A68: 42.32315216
A69: 53.50454531
A70: 50.5816183
A71: 48.75280897
A72: 51.13795879
A73: 51.42529296

Sheet U2
A1: Seien n i.i.d. Zufallsvariablen Xi gegeben und die folgende Statistik,
A2: die auf das kartesische Produkt der Bilder dieser Zufallsvariablen definiert ist:
B5: Y=
A10: s0 ist die Standardabweichung der Zufallsvariablen Xi. (s0 = 9)
A11: n ist die Stichprobengrösse.
A12: S^2 ist die Statistik, welche Stichprobenvarianzen als Werte annimmt.
A13: Wie hoch ist die Wahrscheinlichkeit, dass die Statistik Y den Wert Y(x) oder einen grösseren Wert zufälliger weise annimmt (x ist die vorliegende Stichprobe)?
A14: Wenn die Zufallsvariablen Xi normalverteilt sind, ist die Statistik Y chiquadrat verteilt mit n-1 Freiheitsgraden.
A15: (Überprüfen Sie vor der Berechnung die Voraussetzung)
A17: Daten (Werte der Xi)
A18: 147.2983247
A19: 164.5988138
A20: 132.2455535
A21: 153.5915576
A22: 145.5832605
A23: 155.4549259
A24: 124.5249539
A25: 168.8023715
A26: 170.8062319
A27: 145.1406549
A28: 145.0957377
A29: 136.5980593
A30: 141.5465558
A31: 149.1666916
A32: 142.1220649
A33: 130.5244408
A34: 137.2804888
A35: 166.3649031
A36: 168.4396397
A37: 160.1157719
A38: 167.8298752
A39: 149.1652943
A40: 150.3901642
A41: 143.9090096
A42: 127.0530948
A43: 137.1693445
A44: 162.8731145
A45: 150.1856332
A46: 135.2830239
A47: 150.0845077
A48: 153.741783
A49: 132.3100247
A50: 164.8844265
A51: 132.4134522
A52: 180.4734193
A53: 174.18217
A54: 143.4847842
A55: 156.3021083
A56: 143.0037468
A57: 157.9615098
A58: 143.4947024
A59: 167.9270291
A60: 128.0668281
A61: 151.8826183
A62: 147.0278404
A63: 173.6586888
A64: 160.6576206
A65: 144.8746084
A66: 159.1649342
A67: 160.835272
A68: 177.6852669
A69: 153.2536197
A70: 143.3611008
A71: 153.1249553
A72: 132.3204532
A73: 159.4385282
A74: 153.0371945
A75: 148.3079406
A76: 160.675794
A77: 137.7786517
A78: 146.9517377
A79: 134.7338012
A80: 166.6964128
A81: 136.7779857
A82: 132.1975955
A83: 134.9270958
A84: 156.4007568
A85: 166.8939724
A86: 134.3993272
A87: 126.6775998
A88: 135.4818216
A89: 154.0827962
A90: 142.1200974
A91: 146.6137891
A92: 114.0818715

Sheet LU2
B5: Y=
A10: n= | B10: =COUNT(A18:A92) -> 75
A11: S^2(x)= | B11: =VAR(A18:A92) -> 199.9083167
A12: Y(x)= | B12: =(75-1)*B11/9^2 -> 182.6322893
A13: Xquer(x)= | B13: =AVERAGE(A18:A92) -> 149.114824
A14: P(Y > 182.632289)= | C14: =CHIDIST(B12,74) -> 3.66410205e-11 | D14: =CHIVERT(B12;74)
E16: x | F16: y
A17: Daten (Werte der Xi) | B17: i/n | C17: F(xi) | E17: 0 | F17: 0
A18: 114.0818715 | B18: 0.01333333333 | C18: =NORMDIST(A18,$B$13,SQRT($B$11),1) -> 0.006610283231 | E18: 1 | F18: 1
A19: 124.5249539 | B19: 0.02666666667 | C19: =NORMDIST(A19,$B$13,SQRT($B$11),1) -> 0.04100286615 | E19: Überprüfung aus Normalverteilung der Daten mit P-P-Plot
A20: 126.6775998 | B20: 0.04 | C20: 0.05626593646
A21: 127.0530948 | B21: 0.05333333333 | C21: 0.0593377095
A22: 128.0668281 | B22: 0.06666666667 | C22: 0.06828855243
A23: 130.5244408 | B23: 0.08 | C23: 0.09428184
A24: 132.1975955 | B24: 0.09333333333 | C24: 0.1157501697
A25: 132.2455535 | B25: 0.1066666667 | C25: 0.1164129413
A26: 132.3100247 | B26: 0.12 | C26: 0.1173081585
A27: 132.3204532 | B27: 0.1333333333 | C27: 0.1174534215
A28: 132.4134522 | B28: 0.1466666667 | C28: 0.1187544716
A29: 134.3993272 | B29: 0.16 | C29: 0.1489885216
A30: 134.7338012 | B30: 0.1733333333 | C30: 0.1545469772
A31: 134.9270958 | B31: 0.1866666667 | C31: 0.1578209533
A32: 135.2830239 | B32: 0.2 | C32: 0.1639678751
A33: 135.4818216 | B33: 0.2133333333 | C33: 0.1674678522
A34: 136.5980593 | B34: 0.2266666667 | C34: 0.1880050141
A35: 136.7779857 | B35: 0.24 | C35: 0.1914552334
A36: 137.1693445 | B36: 0.2533333333 | C36: 0.1990926546 | E36: Die Daten, die wir als Werte von Zufallsvariablen betrachten, sind normalverteilt.
A37: 137.2804888 | B37: 0.2666666667 | C37: 0.2012946733
A38: 137.7786517 | B38: 0.28 | C38: 0.2113423657
A39: 141.5465558 | B39: 0.2933333333 | C39: 0.296228099
A40: 142.1200974 | B40: 0.3066666667 | C40: 0.3104005637
A41: 142.1220649 | B41: 0.32 | C41: 0.3104496859
A42: 143.0037468 | B42: 0.3333333333 | C42: 0.3327916761
A43: 143.3611008 | B43: 0.3466666667 | C43: 0.3420249433
A44: 143.4847842 | B44: 0.36 | C44: 0.3452431479
A45: 143.4947024 | B45: 0.3733333333 | C45: 0.3455017063
A46: 143.9090096 | B46: 0.3866666667 | C46: 0.3563653866
A47: 144.8746084 | B47: 0.4 | C47: 0.3821277596
A48: 145.0957377 | B48: 0.4133333333 | C48: 0.3881065353
A49: 145.1406549 | B49: 0.4266666667 | C49: 0.3893242819
A50: 145.5832605 | B50: 0.44 | C50: 0.4013800957
A51: 146.6137891 | B51: 0.4533333333 | C51: 0.4297972312
A52: 146.9517377 | B52: 0.4666666667 | C52: 0.4392037259
A53: 147.0278404 | B53: 0.48 | C53: 0.4413269153
A54: 147.2983247 | B54: 0.4933333333 | C54: 0.4488864035
A55: 148.3079406 | B55: 0.5066666667 | C55: 0.4772453746
A56: 149.1652943 | B56: 0.52 | C56: 0.5014240662
A57: 149.1666916 | B57: 0.5333333333 | C57: 0.5014634914
A58: 150.0845077 | B58: 0.5466666667 | C58: 0.5273391105
A59: 150.1856332 | B59: 0.56 | C59: 0.5301850387
A60: 150.3901642 | B60: 0.5733333333 | C60: 0.5359361953
A61: 151.8826183 | B61: 0.5866666667 | C61: 0.5776000066
A62: 153.0371945 | B62: 0.6 | C62: 0.6092700645
A63: 153.1249553 | B63: 0.6133333333 | C63: 0.6116507765
A64: 153.2536197 | B64: 0.6266666667 | C64: 0.6151334972
A65: 153.5915576 | B65: 0.64 | C65: 0.624236089
A66: 153.741783 | B66: 0.6533333333 | C66: 0.6282607598
A67: 154.0827962 | B67: 0.6666666667 | C67: 0.6373443188
A68: 155.4549259 | B68: 0.68 | C68: 0.6730733949
A69: 156.3021083 | B69: 0.6933333333 | C69: 0.6943905324
A70: 156.4007568 | B70: 0.7066666667 | C70: 0.6968322765
A71: 157.9615098 | B71: 0.72 | C71: 0.7342436692
A72: 159.1649342 | B72: 0.7333333333 | C72: 0.7613999538
A73: 159.4385282 | B73: 0.7466666667 | C73: 0.7673548759
A74: 160.1157719 | B74: 0.76 | C74: 0.7817340192
A75: 160.6576206 | B75: 0.7733333333 | C75: 0.7928603353
A76: 160.675794 | B76: 0.7866666667 | C76: 0.7932275966
A77: 160.835272 | B77: 0.8 | C77: 0.7964338905
A78: 162.8731145 | B78: 0.8133333333 | C78: 0.8347435066
A79: 164.5988138 | B79: 0.8266666667 | C79: 0.8632711341
A80: 164.8844265 | B80: 0.84 | C80: 0.8676465461
A81: 166.3649031 | B81: 0.8533333333 | C81: 0.8887759912
A82: 166.6964128 | B82: 0.8666666667 | C82: 0.8931565444
A83: 166.8939724 | B83: 0.88 | C83: =NORMDIST(A83,$B$13,SQRT($B$11),1) -> 0.8957071484
A84: 167.8298752 | B84: 0.8933333333 | C84: 0.9071915721
A85: 167.9270291 | B85: 0.9066666667 | C85: 0.908327946
A86: 168.4396397 | B86: 0.92 | C86: 0.9141535126
A87: 168.8023715 | B87: 0.9333333333 | C87: 0.9181052541
A88: 170.8062319 | B88: 0.9466666667 | C88: 0.9375055713
A89: 173.6586888 | B89: 0.96 | C89: 0.9587102367
A90: 174.18217 | B90: 0.9733333333 | C90: 0.9618802987
A91: 177.6852669 | B91: 0.9866666667 | C91: 0.978344513
A92: 180.4734193 | B92: 1 | C92: 0.9867190365

Sheet U3
A1: Seien n i.i.d. Zufallsvariablen Xi gegeben und die folgende Statistik Y,
A2: die auf das kartesische Produkt der Bilder dieser Zufallsvariablen definiert ist:
B5: Y=
A10: xquer0 ist der Erwartungswert der Zufallsvariablen Xi. (xquer0 = 500)
A11: n ist die Stichprobengrösse.
A12: S^2 ist die Statistik, welche Stichprobenvarianzen als Werte annimmt.
A13: Wie hoch ist die Wahrscheinlichkeit, dass die Statistik Y den Wert Y(x) oder einen grösseren Wert zufälliger weise annimmt?
A14: Wenn die Zufallsvariablen Xi normalverteilt sind, ist die Statistik Y t-verteilt mit n-1 Freiheitsgraden.
A15: (Überprüfen Sie vor der Berechnung die Voraussetzung)
A17: Daten (Werte der Xi)
A18: 533.3603523
A19: 542.4598436
A20: 548.7222929
A21: 540.1773864
A22: 548.5672071
A23: 528.5518098
A24: 538.8423747
A25: 552.6509981
A26: 535.2606768
A27: 554.4496887
A28: 533.3212014
A29: 550.4947956
A30: 558.475132
A31: 530.9755409
A32: 532.3939578
A33: 536.6124435
A34: 532.1411027
A35: 557.8104269
A36: 527.4853441
A37: 552.497106
A38: 527.0918862
A39: 551.1462844
A40: 546.7600818
A41: 521.2842129
A42: 530.0401219
A43: 527.8126346
A44: 541.9069952
A45: 520.0232845
A46: 536.4536231
A47: 533.0146053
A48: 530.6794637
A49: 541.5388959
A50: 548.5438064
A51: 542.3689259
A52: 535.0152392
A53: 541.5733328
A54: 542.3432922
A55: 546.3063399
A56: 552.4583157
A57: 540.9352073
A58: 518.6335451
A59: 530.7630242
A60: 537.7565431
A61: 543.0870695
A62: 539.3989129
A63: 539.1684126
A64: 525.0756043
A65: 520.0317917
A66: 547.5240764
A67: 539.8744286
A68: 536.5324868
A69: 526.4529268
A70: 544.0115507
A71: 526.7081615
A72: 558.7265331
A73: 534.5612602
A74: 544.9146788
A75: 537.7989638
A76: 550.3836269
A77: 545.9766546
A78: 535.7553202
A79: 543.5666849
A80: 521.5266903
A81: 522.8309216
A82: 531.817008
A83: 532.027754
A84: 537.8567963
A85: 538.2438705
A86: 521.1440307
A87: 527.454449
A88: 548.3454768

Sheet LU3
B5: Y=
A9: Xquer(x)= | B9: =AVERAGE(A18:A88) -> 538.0351477
A10: n= | B10: =COUNT(A18:A88) -> 71
A11: S(x)= | B11: =STDEV(A18:A88) -> 10.10463167
A12: Y(x)= | B12: =(B9-500)*SQRT(71)/B11 -> 31.71712353
A13: P(Y > 31.7171235) = | C13: =TDIST(B12,70,1) -> 1.433312188e-43 | D13: =TVERT(B12;70;1)
A17: Daten (Werte der Xi) | B17: i/n | C17: F(xi) | E17: Überprüfung der Daten auf Normalverteilung
A18: 518.6335451 | B18: 0.01408450704 | C18: =NORMDIST(A18,$B$9,$B$11,1) -> 0.02742451399 | D18: 0 | E18: 0
A19: 520.0232845 | B19: 0.02816901408 | C19: =NORMDIST(A19,$B$9,$B$11,1) -> 0.03733098615 | D19: 1 | E19: 1
A20: 520.0317917 | B20: 0.04225352113 | C20: 0.03739961831
A21: 521.1440307 | B21: 0.05633802817 | C21: 0.04729951661
A22: 521.2842129 | B22: 0.07042253521 | C22: 0.04868415239
A23: 521.5266903 | B23: 0.08450704225 | C23: 0.05115551801
A24: 522.8309216 | B24: 0.0985915493 | C24: 0.06620332534
A25: 525.0756043 | B25: 0.1126760563 | C25: 0.09982752478
A26: 526.4529268 | B26: 0.1267605634 | C26: 0.1258502267
A27: 526.7081615 | B27: 0.1408450704 | C27: 0.1311503751
A28: 527.0918862 | B28: 0.1549295775 | C28: 0.1394054119
A29: 527.454449 | B29: 0.1690140845 | C29: 0.147523562
A30: 527.4853441 | B30: 0.1830985915 | C30: 0.1482296903
A31: 527.8126346 | B31: 0.1971830986 | C31: 0.155848871
A32: 528.5518098 | B32: 0.2112676056 | C32: 0.1739901746
A33: 530.0401219 | B33: 0.2253521127 | C33: 0.2144066812
A34: 530.6794637 | B34: 0.2394366197 | C34: 0.2333215728
A35: 530.7630242 | B35: 0.2535211268 | C35: 0.2358603466 | E35: Die Daten sind normalverteilt
A36: 530.9755409 | B36: 0.2676056338 | C36: 0.2423852145
A37: 531.817008 | B37: 0.2816901408 | C37: 0.269153486
A38: 532.027754 | B38: 0.2957746479 | C38: 0.2760825801
A39: 532.1411027 | B39: 0.3098591549 | C39: 0.2798452376
A40: 532.3939578 | B40: 0.323943662 | C40: 0.2883274079
A41: 533.0146053 | B41: 0.338028169 | C41: 0.3096454581
A42: 533.3212014 | B42: 0.3521126761 | C42: 0.3204240223
A43: 533.3603523 | B43: 0.3661971831 | C43: 0.3218116199
A44: 534.5612602 | B44: 0.3802816901 | C44: 0.3655015093
A45: 535.0152392 | B45: 0.3943661972 | C45: 0.3825219915
A46: 535.2606768 | B46: 0.4084507042 | C46: 0.391821707
A47: 535.7553202 | B47: 0.4225352113 | C47: 0.4107477039
A48: 536.4536231 | B48: 0.4366197183 | C48: 0.4378136211
A49: 536.5324868 | B49: 0.4507042254 | C49: 0.4408911924
A50: 536.6124435 | B50: 0.4647887324 | C50: 0.4440150643
A51: 537.7565431 | B51: 0.4788732394 | C51: 0.4890017708
A52: 537.7989638 | B52: 0.4929577465 | C52: 0.4906760431
A53: 537.8567963 | B53: 0.5070422535 | C53: 0.4929588517
A54: 538.2438705 | B54: 0.5211267606 | C54: 0.5082400277
A55: 538.8423747 | B55: 0.5352112676 | C55: 0.5318363702
A56: 539.1684126 | B56: 0.5492957746 | C56: 0.5446489597
A57: 539.3989129 | B57: 0.5633802817 | C57: 0.5536799761
A58: 539.8744286 | B58: 0.5774647887 | C58: 0.5722178761
A59: 540.1773864 | B59: 0.5915492958 | C59: 0.5839486767
A60: 540.9352073 | B60: 0.6056338028 | C60: 0.6129449894
A61: 541.5388959 | B61: 0.6197183099 | C61: 0.6356092074
A62: 541.5733328 | B62: 0.6338028169 | C62: 0.636888733
A63: 541.9069952 | B63: 0.6478873239 | C63: 0.6492051883
A64: 542.3432922 | B64: 0.661971831 | C64: 0.6650748425
A65: 542.3689259 | B65: 0.676056338 | C65: 0.6659984586
A66: 542.4598436 | B66: 0.6901408451 | C66: 0.6692662246
A67: 543.0870695 | B67: 0.7042253521 | C67: 0.6914487341
A68: 543.5666849 | B68: 0.7183098592 | C68: 0.7079569208
A69: 544.0115507 | B69: 0.7323943662 | C69: 0.7228911442
A70: 544.9146788 | B70: 0.7464788732 | C70: 0.7520103042
A71: 545.9766546 | B71: 0.7605633803 | C71: 0.7840449917
A72: 546.3063399 | B72: 0.7746478873 | C72: 0.7934796971
A73: 546.7600818 | B73: 0.7887323944 | C73: 0.8060573969
A74: 547.5240764 | B74: 0.8028169014 | C74: 0.8261518918
A75: 548.3454768 | B75: 0.8169014085 | C75: 0.8462203508
A76: 548.5438064 | B76: 0.8309859155 | C76: 0.8508264133
A77: 548.5672071 | B77: 0.8450704225 | C77: 0.8513637371
A78: 548.7222929 | B78: 0.8591549296 | C78: 0.8548920641
A79: 550.3836269 | B79: 0.8732394366 | C79: 0.8891577748
A80: 550.4947956 | B80: 0.8873239437 | C80: 0.8912238785
A81: 551.1462844 | B81: 0.9014084507 | C81: 0.9027768144
A82: 552.4583157 | B82: 0.9154929577 | C82: 0.9232650724
A83: 552.497106 | B83: 0.9295774648 | C83: =NORMDIST(A83,$B$9,$B$11,1) -> 0.9238165183
A84: 552.6509981 | B84: 0.9436619718 | C84: 0.9259745687
A85: 554.4496887 | B85: 0.9577464789 | C85: 0.9478608589
A86: 557.8104269 | B86: 0.9718309859 | C86: 0.9748292618
A87: 558.475132 | B87: 0.985915493 | C87: 0.9784548258
A88: 558.7265331 | B88: 1 | C88: 0.9797059345

Sheet U4
A1: Seien n i.i.d. Zufallsvariablen X1i und m i.i.d. Zufallsvariablen X2i gegeben und die folgende Statistik
A4: Y=
A9: S^2 tief i ist die Statistik, welche Varianzen der Stichprobe i als Werte annimmt.
A10: Wie hoch ist die Wahrscheinlichkeit, dass die Statistik Y den Quotienten der Stichprobenvarianzen oder einen kleineren Wert zufälliger weise annimmt?
A11: Wenn die Zufallsvariablen Xi für jede Stichprobe isoliert betrachtet normalverteilt sind, ist die Statistik
A12: Y F-verteilt mit n-1 Zählerfreiheitsgraden und m-1 Nennerfreiheitsgraden.
A13: (Überprüfen Sie vor der Berechnung die Voraussetzung)
A18: Daten (Werte der ZV Xi) | B18: Stichprobe | D18: dat | E18: st
A19: 588.9076919 | B19: 1 | D19: 588.9076919 | E19: 1
A20: 607.4022603 | B20: 1 | D20: 607.4022603 | E20: 1
A21: 588.780512 | B21: 1 | D21: 588.780512 | E21: 1
A22: 603.7517795 | B22: 2 | D22: 603.7517795 | E22: 2
A23: 591.8731721 | B23: 1 | D23: 591.8731721 | E23: 1
A24: 606.5344438 | B24: 1 | D24: 606.5344438 | E24: 1
A25: 586.584785 | B25: 2 | D25: 586.584785 | E25: 2
A26: 592.9593115 | B26: 1 | D26: 592.9593115 | E26: 1
A27: 611.5576762 | B27: 1 | D27: 611.5576762 | E27: 1
A28: 589.5732796 | B28: 1 | D28: 589.5732796 | E28: 1
A29: 601.6751228 | B29: 1 | D29: 601.6751228 | E29: 1
A30: 597.9301706 | B30: 2 | D30: 597.9301706 | E30: 2
A31: 626.5507282 | B31: 2 | D31: 626.5507282 | E31: 2
A32: 612.3405763 | B32: 1 | D32: 612.3405763 | E32: 1
A33: 582.056735 | B33: 2 | D33: 582.056735 | E33: 2
A34: 614.3156242 | B34: 2 | D34: 614.3156242 | E34: 2
A35: 579.7077608 | B35: 2 | D35: 579.7077608 | E35: 2
A36: 603.2330236 | B36: 1 | D36: 603.2330236 | E36: 1
A37: 610.3908231 | B37: 2 | D37: 610.3908231 | E37: 2
A38: 596.35636 | B38: 2 | D38: 596.35636 | E38: 2
A39: 616.3785073 | B39: 2 | D39: 616.3785073 | E39: 2
A40: 606.4906951 | B40: 2 | D40: 606.4906951 | E40: 2
A41: 595.2958898 | B41: 1 | D41: 595.2958898 | E41: 1
A42: 587.743016 | B42: 1 | D42: 587.743016 | E42: 1
A43: 630.2045692 | B43: 2 | D43: 630.2045692 | E43: 2
A44: 603.4385775 | B44: 1 | D44: 603.4385775 | E44: 1
A45: 614.4116865 | B45: 2 | D45: 614.4116865 | E45: 2
A46: 627.4217293 | B46: 2 | D46: 627.4217293 | E46: 2
A47: 610.6804021 | B47: 1 | D47: 610.6804021 | E47: 1
A48: 595.6575487 | B48: 1 | D48: 595.6575487 | E48: 1
A49: 588.2306563 | B49: 2 | D49: 588.2306563 | E49: 2
A50: 610.8148471 | B50: 1 | D50: 610.8148471 | E50: 1
A51: 590.2921165 | B51: 1 | D51: 590.2921165 | E51: 1
A52: 601.3315982 | B52: 1 | D52: 601.3315982 | E52: 1
A53: 574.0688181 | B53: 2 | D53: 574.0688181 | E53: 2
A54: 604.3392226 | B54: 2 | D54: 604.3392226 | E54: 2
A55: 606.5665894 | B55: 1 | D55: 606.5665894 | E55: 1
A56: 602.1795809 | B56: 1 | D56: 602.1795809 | E56: 1
A57: 586.5489307 | B57: 1 | D57: 586.5489307 | E57: 1
A58: 586.5945053 | B58: 1 | D58: 586.5945053 | E58: 1
A59: 606.1925546 | B59: 1 | D59: 606.1925546 | E59: 1
A60: 580.3502672 | B60: 2 | D60: 580.3502672 | E60: 2
A61: 567.0992883 | B61: 2 | D61: 567.0992883 | E61: 2
A62: 596.3075958 | B62: 1 | D62: 596.3075958 | E62: 1
A63: 604.2217621 | B63: 2 | D63: 604.2217621 | E63: 2
A64: 569.0234286 | B64: 2 | D64: 569.0234286 | E64: 2
A65: 591.9376491 | B65: 2 | D65: 591.9376491 | E65: 2
A66: 620.5376496 | B66: 2 | D66: 620.5376496 | E66: 2
A67: 600.4071354 | B67: 2 | D67: 600.4071354 | E67: 2
A68: 601.0084618 | B68: 1 | D68: 601.0084618 | E68: 1
A69: 608.1907456 | B69: 1 | D69: 608.1907456 | E69: 1
A70: 605.7300863 | B70: 1 | D70: 605.7300863 | E70: 1
A71: 614.0294141 | B71: 2 | D71: 614.0294141 | E71: 2
A72: 594.3965363 | B72: 1 | D72: 594.3965363 | E72: 1
A73: 613.4702541 | B73: 2 | D73: 613.4702541 | E73: 2
A74: 618.719574 | B74: 1 | D74: 618.719574 | E74: 1
A75: 601.6762279 | B75: 1 | D75: 601.6762279 | E75: 1
A76: 599.1607633 | B76: 2 | D76: 599.1607633 | E76: 2
A77: 596.2860951 | B77: 1 | D77: 596.2860951 | E77: 1
A78: 618.5672293 | B78: 1 | D78: 618.5672293 | E78: 1
A79: 588.5627426 | B79: 2 | D79: 588.5627426 | E79: 2
A80: 585.6608346 | B80: 2 | D80: 585.6608346 | E80: 2
A81: 580.6632727 | B81: 1 | D81: 580.6632727 | E81: 1
A82: 599.1556459 | B82: 1 | D82: 599.1556459 | E82: 1
A83: 613.0377143 | B83: 2 | D83: 613.0377143 | E83: 2
A84: 588.3866992 | B84: 2 | D84: 588.3866992 | E84: 2
A85: 592.3359439 | B85: 1 | D85: 592.3359439 | E85: 1
A86: 596.2187666 | B86: 2 | D86: 596.2187666 | E86: 2
A87: 595.5003861 | B87: 2 | D87: 595.5003861 | E87: 2
A88: 605.5412154 | B88: 1 | D88: 605.5412154 | E88: 1
A89: 564.8448861 | B89: 2 | D89: 564.8448861 | E89: 2
A90: 574.6443621 | B90: 2 | D90: 574.6443621 | E90: 2
A91: 582.5966029 | B91: 1 | D91: 582.5966029 | E91: 1
A92: 600.2370354 | B92: 2 | D92: 600.2370354 | E92: 2
A93: 592.6094807 | B93: 1 | D93: 592.6094807 | E93: 1
A94: 623.4835203 | B94: 1 | D94: 623.4835203 | E94: 1
A95: 640.2022364 | B95: 2 | D95: 640.2022364 | E95: 2
A96: 624.673903 | B96: 2 | D96: 624.673903 | E96: 2
A97: 590.5432033 | B97: 2 | D97: 590.5432033 | E97: 2
A98: 595.3737412 | B98: 1 | D98: 595.3737412 | E98: 1
A99: 602.0976536 | B99: 1 | D99: 602.0976536 | E99: 1
A100: 593.2311648 | B100: 2 | D100: 593.2311648 | E100: 2
A101: 587.4172079 | B101: 1 | D101: 587.4172079 | E101: 1
A102: 649.5805901 | B102: 2 | D102: 649.5805901 | E102: 2
A103: 607.1396791 | B103: 2 | D103: 607.1396791 | E103: 2
A104: 592.8837257 | B104: 2 | D104: 592.8837257 | E104: 2
A105: 592.1915988 | B105: 2 | D105: 592.1915988 | E105: 2
A106: 598.1067983 | B106: 1 | D106: 598.1067983 | E106: 1
A107: 592.101955 | B107: 2 | D107: 592.101955 | E107: 2
A108: 590.361699 | B108: 1 | D108: 590.361699 | E108: 1
A109: 580.2980412 | B109: 2 | D109: 580.2980412 | E109: 2
A110: 615.460975 | B110: 2 | D110: 615.460975 | E110: 2
A111: 585.3772448 | B111: 2 | D111: 585.3772448 | E111: 2
A112: 598.3517401 | B112: 1 | D112: 598.3517401 | E112: 1
A113: 620.9126635 | B113: 2 | D113: 620.9126635 | E113: 2
A114: 605.6359462 | B114: 2 | D114: 605.6359462 | E114: 2
A115: 616.5248108 | B115: 2 | D115: 616.5248108 | E115: 2
A116: 605.2427683 | B116: 1 | D116: 605.2427683 | E116: 1
A117: 628.32123 | B117: 1 | D117: 628.32123 | E117: 1
A118: 601.3830894 | B118: 1 | D118: 601.3830894 | E118: 1
A119: 589.2339071 | B119: 1 | D119: 589.2339071 | E119: 1
A120: 600.3797487 | B120: 1 | D120: 600.3797487 | E120: 1
A121: 592.7283669 | B121: 1 | D121: 592.7283669 | E121: 1
A122: 607.3350719 | B122: 2 | D122: 607.3350719 | E122: 2
A123: 597.0018747 | B123: 2 | D123: 597.0018747 | E123: 2
A124: 593.1220674 | B124: 2 | D124: 593.1220674 | E124: 2
A125: 614.5405877 | B125: 2 | D125: 614.5405877 | E125: 2
A126: 600.6672752 | B126: 1 | D126: 600.6672752 | E126: 1
A127: 596.5498538 | B127: 1 | D127: 596.5498538 | E127: 1
A128: 615.5641751 | B128: 2 | D128: 615.5641751 | E128: 2
A129: 621.052771 | B129: 2 | D129: 621.052771 | E129: 2
A130: 599.4141625 | B130: 2 | D130: 599.4141625 | E130: 2
A131: 597.9665029 | B131: 1 | D131: 597.9665029 | E131: 1
A132: 595.428688 | B132: 2 | D132: 595.428688 | E132: 2
A133: 599.0876413 | B133: 2 | D133: 599.0876413 | E133: 2
A134: 615.2378556 | B134: 2 | D134: 615.2378556 | E134: 2
A135: 574.3869549 | B135: 2 | D135: 574.3869549 | E135: 2
A136: 603.3910346 | B136: 1 | D136: 603.3910346 | E136: 1
A137: 613.4471911 | B137: 1 | D137: 613.4471911 | E137: 1
A138: 609.9863078 | B138: 2 | D138: 609.9863078 | E138: 2
A139: 592.6254332 | B139: 2 | D139: 592.6254332 | E139: 2

Sheet LU4
A2: Y=
A7: S^2tief1(x1)= | B7: =VAR(A19:A75) -> 99.46310697 | D7: x1 = Stichprobe 1 | F7: 19:75
A8: S^2tief^2(x2)= | B8: =VAR(A76:A139) -> 309.0085379 | D8: x2 = Stichprobe 2 | F8: 76:139
A9: Xquer(x1)= | B9: =AVERAGE(A19:A75) -> 599.937917
A10: Xquer(x2)= | B10: =AVERAGE(A76:A139) -> 601.0634847
A11: n1 | B11: =COUNT(A19:A75) -> 57
A12: n2 | B12: =COUNT(A76:A139) -> 64
D14: Wahrscheinlichkeit:
D15: =_xlfn.F.DIST(B7/B8,56,63,1) -> 1.396115464e-05 | E15: =F.VERT(B7/B8;56;63;1)
E17: Überprüfung der Daten pro Stichprobe auf Normalverteilung
A18: Daten (Werte der ZV Xi) | B18: Stichprobe | C18: i/n | D18: F(xi) | E18: Stichprobe 1
A19: 580.6632727 | B19: 1 | C19: 0.01754385965 | D19: =NORMDIST(A19,$B$9,SQRT($B$7),1) -> 0.02663907429 | E19: 0 | F19: 0
A20: 582.5966029 | B20: 1 | C20: 0.0350877193 | D20: 0.04103449437 | E20: 1 | F20: 1
A21: 586.5489307 | B21: 1 | C21: 0.05263157895 | D21: 0.08971576782
A22: 586.5945053 | B22: 1 | C22: 0.0701754386 | D22: 0.09045838081
A23: 587.4172079 | B23: 1 | C23: 0.08771929825 | D23: 0.1046585138
A24: 587.743016 | B24: 1 | C24: 0.1052631579 | D24: 0.1107069643
A25: 588.780512 | B25: 1 | C25: 0.1228070175 | D25: 0.1316238775
A26: 588.9076919 | B26: 1 | C26: 0.1403508772 | D26: 0.1343642321
A27: 589.2339071 | B27: 1 | C27: 0.1578947368 | D27: 0.141571392
A28: 589.5732796 | B28: 1 | C28: 0.1754385965 | D28: 0.1493425347
A29: 590.2921165 | B29: 1 | C29: 0.1929824561 | D29: 0.1667270529
A30: 590.361699 | B30: 1 | C30: 0.2105263158 | D30: 0.1684765529
A31: 591.8731721 | B31: 1 | C31: 0.2280701754 | D31: 0.2093587649
A32: 592.3359439 | B32: 1 | C32: 0.2456140351 | D32: 0.2229565117
A33: 592.6094807 | B33: 1 | C33: 0.2631578947 | D33: 0.2312249025
A34: 592.7283669 | B34: 1 | C34: 0.2807017544 | D34: 0.2348712085
A35: 592.9593115 | B35: 1 | C35: 0.298245614 | D35: 0.2420443752
A36: 594.3965363 | B36: 1 | C36: 0.3157894737 | D36: 0.2892313438
A37: 595.2958898 | B37: 1 | C37: 0.3333333333 | D37: 0.3208032215 | E37: Die Daten der Stichprobe 1 sind normalverteilt.
A38: 595.3737412 | B38: 1 | C38: 0.350877193 | D38: 0.3236027586
A39: 595.6575487 | B39: 1 | C39: 0.3684210526 | D39: 0.3338922872 | E39: Stichprobe 2:
A40: 596.2860951 | B40: 1 | C40: 0.3859649123 | D40: 0.3571204292
A41: 596.3075958 | B41: 1 | C41: 0.4035087719 | D41: 0.3579250426
A42: 596.5498538 | B42: 1 | C42: 0.4210526316 | D42: 0.3670338827
A43: 597.9665029 | B43: 1 | C43: 0.4385964912 | D43: 0.4216505472
A44: 598.1067983 | B44: 1 | C44: 0.4561403509 | D44: 0.4271615058
A45: 598.3517401 | B45: 1 | C45: 0.4736842105 | D45: 0.4368166236
A46: 599.1556459 | B46: 1 | C46: 0.4912280702 | D46: 0.4687398397
A47: 600.3797487 | B47: 1 | C47: 0.5087719298 | D47: 0.5176682641
A48: 600.6672752 | B48: 1 | C48: 0.5263157895 | D48: 0.5291496237
A49: 601.0084618 | B49: 1 | C49: 0.5438596491 | D49: 0.5427415755
A50: 601.3315982 | B50: 1 | C50: 0.5614035088 | D50: 0.5555687762
A51: 601.3830894 | B51: 1 | C51: 0.5789473684 | D51: =NORMDIST(A51,$B$9,SQRT($B$7),1) -> 0.5576077577
A52: 601.6751228 | B52: 1 | C52: 0.5964912281 | D52: 0.5691414619
A53: 601.6762279 | B53: 1 | C53: 0.6140350877 | D53: 0.5691849998
A54: 602.0976536 | B54: 1 | C54: 0.6315789474 | D54: 0.5857227251
A55: 602.1795809 | B55: 1 | C55: 0.649122807 | D55: 0.5889211255
A56: 603.2330236 | B56: 1 | C56: 0.6666666667 | D56: 0.629450676 | E56: Die Daten der Stichprobe 2 sind nicht normalverteilt
A57: 603.3910346 | B57: 1 | C57: 0.6842105263 | D57: 0.6354197575
A58: 603.4385775 | B58: 1 | C58: 0.701754386 | D58: 0.6372094231
A59: 605.2427683 | B59: 1 | C59: 0.7192982456 | D59: 0.7026075513
A60: 605.5412154 | B60: 1 | C60: 0.7368421053 | D60: 0.7128875196
A61: 605.7300863 | B61: 1 | C61: 0.7543859649 | D61: 0.7193049939
A62: 606.1925546 | B62: 1 | C62: 0.7719298246 | D62: 0.7347194088
A63: 606.5344438 | B63: 1 | C63: 0.7894736842 | D63: 0.7458319137
A64: 606.5665894 | B64: 1 | C64: 0.8070175439 | D64: 0.7468640501
A65: 607.4022603 | B65: 1 | C65: 0.8245614035 | D65: 0.7729044727
A66: 608.1907456 | B66: 1 | C66: 0.8421052632 | D66: 0.7960251979
A67: 610.6804021 | B67: 1 | C67: 0.8596491228 | D67: 0.8592920207
A68: 610.8148471 | B68: 1 | C68: 0.8771929825 | D68: 0.8622809712
A69: 611.5576762 | B69: 1 | C69: 0.8947368421 | D69: 0.8780123247
A70: 612.3405763 | B70: 1 | C70: 0.9122807018 | D70: 0.8931782205
A71: 613.4471911 | B71: 1 | C71: 0.9298245614 | D71: 0.9122224781
A72: 618.5672293 | B72: 1 | C72: 0.9473684211 | D72: 0.9691156493
A73: 618.719574 | B73: 1 | C73: 0.9649122807 | D73: 0.9701652596
A74: 623.4835203 | B74: 1 | C74: 0.9824561404 | D74: 0.9908848401
A75: 628.32123 | B75: 1 | C75: 1 | D75: 0.9977862618
A76: 564.8448861 | B76: 2 | C76: 0.015625 | D76: =NORMDIST(A76,$B$10,SQRT($B$8),1) -> 0.01968132284
A77: 567.0992883 | B77: 2 | C77: 0.03125 | D77: =NORMDIST(A77,$B$10,SQRT($B$8),1) -> 0.02667179706
A78: 569.0234286 | B78: 2 | C78: 0.046875 | D78: 0.03417669875
A79: 574.0688181 | B79: 2 | C79: 0.0625 | D79: 0.06231191227
A80: 574.3869549 | B80: 2 | C80: 0.078125 | D80: 0.06456346209
A81: 574.6443621 | B81: 2 | C81: 0.09375 | D81: 0.06643104854
A82: 579.7077608 | B82: 2 | C82: 0.109375 | D82: 0.1122082397
A83: 580.2980412 | B83: 2 | C83: 0.125 | D83: 0.1187440705
A84: 580.3502672 | B84: 2 | C84: 0.140625 | D84: 0.1193350279
A85: 582.056735 | B85: 2 | C85: 0.15625 | D85: 0.1397949013
A86: 585.3772448 | B86: 2 | C86: 0.171875 | D86: 0.18610357
A87: 585.6608346 | B87: 2 | C87: 0.1875 | D87: 0.1904568424
A88: 586.584785 | B88: 2 | C88: 0.203125 | D88: 0.2050683576
A89: 588.2306563 | B89: 2 | C89: 0.21875 | D89: 0.2326877532
A90: 588.3866992 | B90: 2 | C90: 0.234375 | D90: 0.2354094879
A91: 588.5627426 | B91: 2 | C91: 0.25 | D91: 0.2385010524
A92: 590.5432033 | B92: 2 | C92: 0.265625 | D92: 0.2747633101
A93: 591.9376491 | B93: 2 | C93: 0.28125 | D93: 0.3018303474
A94: 592.101955 | B94: 2 | C94: 0.296875 | D94: 0.3050969946
A95: 592.1915988 | B95: 2 | C95: 0.3125 | D95: 0.3068858415
A96: 592.6254332 | B96: 2 | C96: 0.328125 | D96: 0.315607531
A97: 592.8837257 | B97: 2 | C97: 0.34375 | D97: 0.3208497969
A98: 593.1220674 | B98: 2 | C98: 0.359375 | D98: 0.3257190693
A99: 593.2311648 | B99: 2 | C99: 0.375 | D99: 0.3279579323
A100: 595.428688 | B100: 2 | C100: 0.390625 | D100: 0.3742764926
A101: 595.5003861 | B101: 2 | C101: 0.40625 | D101: 0.3758231813
A102: 596.2187666 | B102: 2 | C102: 0.421875 | D102: 0.3914266672
A103: 596.35636 | B103: 2 | C103: 0.4375 | D103: 0.3944361541
A104: 597.0018747 | B104: 2 | C104: 0.453125 | D104: 0.4086365313
A105: 597.9301706 | B105: 2 | C105: 0.46875 | D105: 0.4292650702
A106: 599.0876413 | B106: 2 | C106: 0.484375 | D106: 0.4552530284
A107: 599.1607633 | B107: 2 | C107: 0.5 | D107: 0.4569024429
A108: 599.4141625 | B108: 2 | C108: 0.515625 | D108: 0.4626239412
A109: 600.2370354 | B109: 2 | C109: 0.53125 | D109: 0.4812508725
A110: 600.4071354 | B110: 2 | C110: 0.546875 | D110: 0.4851077969
A111: 603.7517795 | B111: 2 | C111: 0.5625 | D111: 0.5607731178
A112: 604.2217621 | B112: 2 | C112: 0.578125 | D112: 0.571292467
A113: 604.3392226 | B113: 2 | C113: 0.59375 | D113: 0.5739139277
A114: 605.6359462 | B114: 2 | C114: 0.609375 | D114: 0.6026123323
A115: 606.4906951 | B115: 2 | C115: 0.625 | D115: 0.6212399443
A116: 607.1396791 | B116: 2 | C116: 0.640625 | D116: 0.635200068
A117: 607.3350719 | B117: 2 | C117: 0.65625 | D117: 0.6393692007
A118: 609.9863078 | B118: 2 | C118: 0.671875 | D118: 0.6941311819
A119: 610.3908231 | B119: 2 | C119: 0.6875 | D119: 0.7021542253
A120: 613.0377143 | B120: 2 | C120: 0.703125 | D120: 0.7521214253
A121: 613.4702541 | B121: 2 | C121: 0.71875 | D121: 0.7598396039
A122: 614.0294141 | B122: 2 | C122: 0.734375 | D122: 0.7696199346
A123: 614.3156242 | B123: 2 | C123: 0.75 | D123: 0.7745385981
A124: 614.4116865 | B124: 2 | C124: 0.765625 | D124: 0.776176054
A125: 614.5405877 | B125: 2 | C125: 0.78125 | D125: 0.7783626184
A126: 615.2378556 | B126: 2 | C126: 0.796875 | D126: 0.7899767719
A127: 615.460975 | B127: 2 | C127: 0.8125 | D127: 0.7936162906
A128: 615.5641751 | B128: 2 | C128: 0.828125 | D128: 0.795286969
A129: 616.3785073 | B129: 2 | C129: 0.84375 | D129: 0.8081854798
A130: 616.5248108 | B130: 2 | C130: 0.859375 | D130: 0.8104489636
A131: 620.5376496 | B131: 2 | C131: 0.875 | D131: 0.8660326451
A132: 620.9126635 | B132: 2 | C132: 0.890625 | D132: 0.8705858258
A133: 621.052771 | B133: 2 | C133: 0.90625 | D133: 0.872259085
A134: 624.673903 | B134: 2 | C134: 0.921875 | D134: 0.9103852552
A135: 626.5507282 | B135: 2 | C135: 0.9375 | D135: 0.9264566007
A136: 627.4217293 | B136: 2 | C136: 0.953125 | D136: 0.9331212018
A137: 630.2045692 | B137: 2 | C137: 0.96875 | D137: 0.9513165845
A138: 640.2022364 | B138: 2 | C138: 0.984375 | D138: 0.9870094793
A139: 649.5805901 | B139: 2 | C139: 1 | D139: 0.9971099635
